[Event "*** Titled Tuesday Blitz"]
[Site "Chess.com"]
[Date "2020.12.01"]
[Round "9"]
[White "Hikaru"]
[Black "Duhless"]
[Result "1/2-1/2"]
[WhiteElo "3185"]
[BlackElo "3020"]
[TimeControl "180+1"]
[EndTime "11:44:58 PST"]
[Termination "Game drawn - insufficient material"]

1. Nf3 {[%clk 0:03:00.9]} 1... Nf6 {[%clk 0:02:59.4]} 2. c4 {[%clk 0:02:55.7]}
2... c5 {[%clk 0:02:53.8]} 3. Nc3 {[%clk 0:02:54.9]} 3... Nc6 {[%clk 0:02:51.9]}
4. d4 {[%clk 0:02:51.7]} 4... cxd4 {[%clk 0:02:51.4]} 5. Nxd4 {[%clk 0:02:52.6]}
5... e6 {[%clk 0:02:52]} 6. a3 {[%clk 0:02:51.7]} 6... d5 {[%clk 0:02:48.7]} 7.
e3 {[%clk 0:02:42.1]} 7... Be7 {[%clk 0:02:35]} 8. cxd5 {[%clk 0:02:22]} 8...
Nxd5 {[%clk 0:02:34.5]} 9. Nxc6 {[%clk 0:02:22.3]} 9... bxc6 {[%clk 0:02:34]}
10. Bd2 {[%clk 0:02:23.2]} 10... O-O {[%clk 0:02:32.9]} 11. Rc1 {[%clk
0:02:22.9]} 11... Rb8 {[%clk 0:02:30.7]} 12. Qc2 {[%clk 0:02:22.9]} 12... Bf6
{[%clk 0:02:18.2]} 13. Be2 {[%clk 0:02:16.6]} 13... Nxc3 {[%clk 0:02:14.4]} 14.
Bxc3 {[%clk 0:02:16.6]} 14... Bxc3+ {[%clk 0:02:14.4]} 15. Qxc3 {[%clk
0:02:16.9]} 15... Qf6 {[%clk 0:02:07.1]} 16. Qxf6 {[%clk 0:02:13.6]} 16... gxf6
{[%clk 0:02:08]} 17. Rc2 {[%clk 0:02:14.3]} 17... e5 {[%clk 0:02:05.2]} 18. Bd3
{[%clk 0:02:07.3]} 18... Be6 {[%clk 0:02:00.8]} 19. Ke2 {[%clk 0:02:05.7]} 19...
Rb3 {[%clk 0:01:55.6]} 20. Rd1 {[%clk 0:01:48.4]} 20... Rfb8 {[%clk 0:01:41.6]}
21. Rdd2 {[%clk 0:01:48.5]} 21... c5 {[%clk 0:01:40.1]} 22. h4 {[%clk
0:01:19.9]} 22... Kg7 {[%clk 0:01:32.4]} 23. Be4 {[%clk 0:01:14.6]} 23... f5
{[%clk 0:01:22.5]} 24. Bd5 {[%clk 0:01:06.4]} 24... Bxd5 {[%clk 0:01:16.9]} 25.
Rxd5 {[%clk 0:01:07.3]} 25... Rxb2 {[%clk 0:01:16.9]} 26. Rxc5 {[%clk
0:01:06.5]} 26... Rxc2+ {[%clk 0:01:14.2]} 27. Rxc2 {[%clk 0:01:07.4]} 27... Rb3
{[%clk 0:01:13.9]} 28. Rc5 {[%clk 0:01:07.6]} 28... Rxa3 {[%clk 0:01:01.7]} 29.
Rxe5 {[%clk 0:01:06.2]} 29... Kf6 {[%clk 0:00:55.2]} 30. Rb5 {[%clk 0:01:05.7]}
30... Ra2+ {[%clk 0:00:49.1]} 31. Kf3 {[%clk 0:01:05.9]} 31... h6 {[%clk
0:00:49]} 32. Rc5 {[%clk 0:01:04.4]} 32... a5 {[%clk 0:00:47]} 33. Rc6+ {[%clk
0:00:57.7]} 33... Kg7 {[%clk 0:00:46.4]} 34. Ra6 {[%clk 0:00:48.7]} 34... Ra4
{[%clk 0:00:43.6]} 35. h5 {[%clk 0:00:37.5]} 35... Ra2 {[%clk 0:00:34.2]} 36.
Kg3 {[%clk 0:00:36.3]} 36... a4 {[%clk 0:00:16]} 37. f3 {[%clk 0:00:36.4]} 37...
a3 {[%clk 0:00:16.1]} 38. Ra5 {[%clk 0:00:28.5]} 38... Kf6 {[%clk 0:00:13.7]}
39. Ra6+ {[%clk 0:00:29.1]} 39... Kg7 {[%clk 0:00:08]} 40. Ra5 {[%clk
0:00:27.8]} 40... Kf6 {[%clk 0:00:07.5]} 41. Kf4 {[%clk 0:00:28.4]} 41... Rxg2
{[%clk 0:00:06.2]} 42. Rxf5+ {[%clk 0:00:22.1]} 42... Kg7 {[%clk 0:00:06.1]} 43.
Ra5 {[%clk 0:00:23]} 43... Rg5 {[%clk 0:00:04.4]} 44. Rxa3 {[%clk 0:00:22.7]}
44... Rxh5 {[%clk 0:00:04.7]} 45. e4 {[%clk 0:00:22.9]} 45... Rg5 {[%clk
0:00:03.8]} 46. Ra2 {[%clk 0:00:21.8]} 46... Rg6 {[%clk 0:00:02.7]} 47. Rh2
{[%clk 0:00:22.3]} 47... Rf6+ {[%clk 0:00:02.9]} 48. Ke3 {[%clk 0:00:22.9]}
48... Rg6 {[%clk 0:00:03.8]} 49. f4 {[%clk 0:00:23]} 49... Rg3+ {[%clk
0:00:03.8]} 50. Kd4 {[%clk 0:00:23.6]} 50... Kg6 {[%clk 0:00:04]} 51. Ke5 {[%clk
0:00:23.6]} 51... h5 {[%clk 0:00:04.2]} 52. Rh1 {[%clk 0:00:18.5]} 52... Rg4
{[%clk 0:00:04.3]} 53. f5+ {[%clk 0:00:16.5]} 53... Kg5 {[%clk 0:00:04.3]} 54.
Re1 {[%clk 0:00:14.3]} 54... f6+ {[%clk 0:00:04.3]} 55. Ke6 {[%clk 0:00:14.4]}
55... h4 {[%clk 0:00:04.8]} 56. e5 {[%clk 0:00:14.9]} 56... fxe5 {[%clk
0:00:05.1]} 57. f6 {[%clk 0:00:15.5]} 57... Rf4 {[%clk 0:00:04.9]} 58. f7 {[%clk
0:00:16]} 58... h3 {[%clk 0:00:02.8]} 59. Rxe5+ {[%clk 0:00:08.2]} 59... Kg4
{[%clk 0:00:02.8]} 60. Ke7 {[%clk 0:00:04.3]} 60... Rxf7+ {[%clk 0:00:03.7]} 61.
Kxf7 {[%clk 0:00:04.5]} 61... h2 {[%clk 0:00:04.2]} 62. Re1 {[%clk 0:00:05.3]}
62... Kg3 {[%clk 0:00:04.1]} 63. Rh1 {[%clk 0:00:06.2]} 63... Kg2 {[%clk
0:00:04.8]} 64. Rxh2+ {[%clk 0:00:07.1]} 64... Kxh2 {[%clk 0:00:05.2]} 1/2-1/2

[Event "*** Titled Tuesday Blitz"]
[Site "Chess.com"]
[Date "2020.12.01"]
[Round "9"]
[White "Sokoloco"]
[Black "Reader777"]
[Result "1/2-1/2"]
[WhiteElo "2499"]
[BlackElo "2687"]
[TimeControl "180+1"]
[EndTime "11:45:01 PST"]
[Termination "Game drawn by repetition"]

1. b3 {[%clk 0:03:00.9]} 1... c5 {[%clk 0:02:57.9]} 2. Bb2 {[%clk 0:03:01.8]}
2... d6 {[%clk 0:02:57.8]} 3. e3 {[%clk 0:03:01.3]} 3... e5 {[%clk 0:02:57.3]}
4. d4 {[%clk 0:02:59.4]} 4... cxd4 {[%clk 0:02:57.4]} 5. exd4 {[%clk 0:02:59.6]}
5... e4 {[%clk 0:02:58]} 6. d5 {[%clk 0:02:52.3]} 6... Nf6 {[%clk 0:02:57]} 7.
c4 {[%clk 0:02:52.3]} 7... Be7 {[%clk 0:02:57.3]} 8. Ne2 {[%clk 0:02:45.2]} 8...
Bf5 {[%clk 0:02:55.2]} 9. Ng3 {[%clk 0:02:38.2]} 9... Bg6 {[%clk 0:02:54.9]} 10.
Be2 {[%clk 0:02:36.7]} 10... O-O {[%clk 0:02:53.8]} 11. O-O {[%clk 0:02:37.1]}
11... Nbd7 {[%clk 0:02:53]} 12. Re1 {[%clk 0:02:35.6]} 12... Re8 {[%clk
0:02:45.2]} 13. Nc3 {[%clk 0:02:28.8]} 13... Ne5 {[%clk 0:02:42.9]} 14. Qd4
{[%clk 0:02:06.1]} 14... Qb6 {[%clk 0:02:09.3]} 15. Qxb6 {[%clk 0:01:56.1]}
15... axb6 {[%clk 0:02:08.9]} 16. Nb5 {[%clk 0:01:48.4]} 16... Rac8 {[%clk
0:01:55.1]} 17. Bxe5 {[%clk 0:01:41.3]} 17... dxe5 {[%clk 0:01:55.5]} 18. Nf1
{[%clk 0:01:30.2]} 18... Bc5 {[%clk 0:01:52.9]} 19. Ne3 {[%clk 0:01:30.3]} 19...
Red8 {[%clk 0:01:34.2]} 20. Rad1 {[%clk 0:01:29.8]} 20... Ra8 {[%clk 0:01:29.8]}
21. a4 {[%clk 0:01:29.7]} 21... Ne8 {[%clk 0:01:29.2]} 22. Bg4 {[%clk
0:01:24.7]} 22... Nd6 {[%clk 0:01:26.7]} 23. Nxd6 {[%clk 0:01:16.1]} 23... Rxd6
{[%clk 0:01:23.9]} 24. Bf5 {[%clk 0:00:44.3]} 24... Kf8 {[%clk 0:00:48.1]} 25.
g4 {[%clk 0:00:32.7]} 25... Ke7 {[%clk 0:00:40.1]} 26. Bxg6 {[%clk 0:00:16.4]}
26... hxg6 {[%clk 0:00:39.6]} 27. Kg2 {[%clk 0:00:16.7]} 27... Rf8 {[%clk
0:00:37.6]} 28. g5 {[%clk 0:00:15.3]} 28... f5 {[%clk 0:00:36.8]} 29. gxf6+
{[%clk 0:00:15.6]} 29... gxf6 {[%clk 0:00:35.8]} 30. Nc2 {[%clk 0:00:15.5]}
30... f5 {[%clk 0:00:28.8]} 31. b4 {[%clk 0:00:15.6]} 31... Bd4 {[%clk
0:00:28.8]} 32. Nxd4 {[%clk 0:00:16]} 32... exd4 {[%clk 0:00:29.1]} 33. Rxd4
{[%clk 0:00:16.6]} 33... Rc8 {[%clk 0:00:23.6]} 34. f3 {[%clk 0:00:16.3]} 34...
Kf6 {[%clk 0:00:23.9]} 35. fxe4 {[%clk 0:00:16.3]} 35... Ke5 {[%clk 0:00:24.4]}
36. Red1 {[%clk 0:00:13.9]} 36... fxe4 {[%clk 0:00:24.6]} 37. a5 {[%clk
0:00:13.1]} 37... bxa5 {[%clk 0:00:24.1]} 38. c5 {[%clk 0:00:13.7]} 38... Rf6
{[%clk 0:00:22.2]} 39. d6 {[%clk 0:00:14]} 39... axb4 {[%clk 0:00:21]} 40. d7
{[%clk 0:00:13.4]} 40... Rd8 {[%clk 0:00:21.3]} 41. Rxb4 {[%clk 0:00:10.8]}
41... Rc6 {[%clk 0:00:18.1]} 42. Rxb7 {[%clk 0:00:08.1]} 42... Rxc5 {[%clk
0:00:17.9]} 43. Rb6 {[%clk 0:00:08]} 43... Rd5 {[%clk 0:00:15.4]} 44. Rxd5+
{[%clk 0:00:05.8]} 44... Kxd5 {[%clk 0:00:16]} 45. Rxg6 {[%clk 0:00:05.8]} 45...
Rxd7 {[%clk 0:00:16.1]} 46. Kf2 {[%clk 0:00:05.4]} 46... Kd4 {[%clk 0:00:16.2]}
47. Ke2 {[%clk 0:00:05]} 47... Rh7 {[%clk 0:00:16.8]} 48. Rd6+ {[%clk
0:00:05.1]} 48... Ke5 {[%clk 0:00:17.2]} 49. Rd8 {[%clk 0:00:05.3]} 49... Rxh2+
{[%clk 0:00:17.4]} 50. Ke3 {[%clk 0:00:06]} 50... Rh3+ {[%clk 0:00:17.7]} 51.
Ke2 {[%clk 0:00:06.7]} 51... Ra3 {[%clk 0:00:13.3]} 52. Re8+ {[%clk 0:00:06.4]}
52... Kd5 {[%clk 0:00:13.8]} 53. Rd8+ {[%clk 0:00:06.8]} 53... Kc5 {[%clk
0:00:14]} 54. Re8 {[%clk 0:00:05.7]} 54... Kd4 {[%clk 0:00:14.4]} 55. Rd8+
{[%clk 0:00:06.2]} 55... Ke5 {[%clk 0:00:14.6]} 56. Re8+ {[%clk 0:00:06.8]}
56... Kf4 {[%clk 0:00:14.6]} 57. Rf8+ {[%clk 0:00:07.1]} 57... Kg4 {[%clk
0:00:14.5]} 58. Re8 {[%clk 0:00:07.3]} 58... Kf4 {[%clk 0:00:14.7]} 59. Rf8+
{[%clk 0:00:08]} 59... Kg5 {[%clk 0:00:14.9]} 60. Re8 {[%clk 0:00:08.2]} 60...
Kf5 {[%clk 0:00:14.9]} 61. Rf8+ {[%clk 0:00:08.7]} 61... Ke6 {[%clk 0:00:14.8]}
62. Re8+ {[%clk 0:00:09.2]} 62... Kd5 {[%clk 0:00:15.3]} 63. Rd8+ {[%clk
0:00:09.5]} 63... Kc6 {[%clk 0:00:13.8]} 64. Re8 {[%clk 0:00:09.8]} 64... Kd5
{[%clk 0:00:14]} 1/2-1/2

[Event "*** Titled Tuesday Blitz"]
[Site "Chess.com"]
[Date "2020.12.01"]
[Round "9"]
[White "ChronicUnhappiness"]
[Black "frederiksvane"]
[Result "0-1"]
[WhiteElo "2370"]
[BlackElo "2701"]
[TimeControl "180+1"]
[EndTime "11:45:05 PST"]
[Termination "frederiksvane won on time"]

1. c4 {[%clk 0:03:00.9]} 1... Nf6 {[%clk 0:02:59.5]} 2. Nf3 {[%clk 0:03:00.1]}
2... e6 {[%clk 0:02:59.3]} 3. g3 {[%clk 0:02:59.3]} 3... d5 {[%clk 0:02:59.5]}
4. Bg2 {[%clk 0:02:59.7]} 4... Be7 {[%clk 0:02:59]} 5. O-O {[%clk 0:02:59.8]}
5... O-O {[%clk 0:02:59.2]} 6. d4 {[%clk 0:03:00.2]} 6... dxc4 {[%clk
0:02:59.7]} 7. Qc2 {[%clk 0:03:00.4]} 7... a6 {[%clk 0:02:59.7]} 8. Qxc4 {[%clk
0:03:00.4]} 8... b5 {[%clk 0:02:59.9]} 9. Qc2 {[%clk 0:03:00.5]} 9... Bb7 {[%clk
0:03:00.4]} 10. Bf4 {[%clk 0:03:00.7]} 10... Nc6 {[%clk 0:02:59.8]} 11. Nc3
{[%clk 0:02:58]} 11... Nb4 {[%clk 0:02:56.1]} 12. Qc1 {[%clk 0:02:57.7]} 12...
c5 {[%clk 0:02:53]} 13. Rd1 {[%clk 0:02:31]} 13... c4 {[%clk 0:02:48.4]} 14. Bg5
{[%clk 0:02:14.9]} 14... Nbd5 {[%clk 0:02:43.5]} 15. a4 {[%clk 0:01:43.7]} 15...
Qb6 {[%clk 0:02:31.4]} 16. Ne5 {[%clk 0:01:27.4]} 16... Nxc3 {[%clk 0:02:19.5]}
17. bxc3 {[%clk 0:01:28.3]} 17... Bxg2 {[%clk 0:02:18.7]} 18. Kxg2 {[%clk
0:01:27.9]} 18... Rfc8 {[%clk 0:02:13.8]} 19. Bxf6 {[%clk 0:01:21.2]} 19... Bxf6
{[%clk 0:02:12.9]} 20. Qe3 {[%clk 0:01:10.3]} 20... Qb7+ {[%clk 0:02:08.2]} 21.
Qf3 {[%clk 0:01:04.8]} 21... Rab8 {[%clk 0:01:56.4]} 22. axb5 {[%clk 0:00:56]}
22... axb5 {[%clk 0:01:56.3]} 23. e4 {[%clk 0:00:48.5]} 23... b4 {[%clk
0:01:21.2]} 24. Ng4 {[%clk 0:00:45.8]} 24... Be7 {[%clk 0:01:17.9]} 25. cxb4
{[%clk 0:00:45.3]} 25... c3 {[%clk 0:01:14.9]} 26. Rac1 {[%clk 0:00:37.6]} 26...
Bxb4 {[%clk 0:01:10]} 27. Rc2 {[%clk 0:00:37.3]} 27... Qb5 {[%clk 0:01:03.2]}
28. d5 {[%clk 0:00:33.7]} 28... exd5 {[%clk 0:01:00.6]} 29. exd5 {[%clk
0:00:25.1]} 29... Qa4 {[%clk 0:01:00.9]} 30. Qd3 {[%clk 0:00:23.8]} 30... Rd8
{[%clk 0:00:54.3]} 31. Ne5 {[%clk 0:00:22.1]} 31... Rb6 {[%clk 0:00:51.6]} 32.
Nc4 {[%clk 0:00:14.8]} 32... Rh6 {[%clk 0:00:42]} 33. Re1 {[%clk 0:00:12.4]}
33... Qd7 {[%clk 0:00:38.6]} 34. h4 {[%clk 0:00:12.6]} 34... Rf6 {[%clk
0:00:34.3]} 35. Re4 {[%clk 0:00:11]} 35... h6 {[%clk 0:00:28.7]} 36. Ne5 {[%clk
0:00:09.6]} 36... Qxd5 {[%clk 0:00:03]} 37. Qxd5 {[%clk 0:00:06.9]} 37... Rxd5
{[%clk 0:00:03.9]} 38. Nxf7 {[%clk 0:00:06.9]} 38... Ba5 {[%clk 0:00:01.6]} 39.
Ne5 {[%clk 0:00:05.8]} 39... Re6 {[%clk 0:00:01.3]} 40. f4 {[%clk 0:00:05.2]}
40... Kh7 {[%clk 0:00:01.9]} 41. Ree2 {[%clk 0:00:04.8]} 41... Red6 {[%clk
0:00:02.1]} 42. Kf3 {[%clk 0:00:05]} 42... Rd2 {[%clk 0:00:02.6]} 43. Ng4 {[%clk
0:00:04.4]} 43... R6d3+ {[%clk 0:00:02.5]} 44. Kf2 {[%clk 0:00:04.2]} 44... Bb6+
{[%clk 0:00:03.2]} 45. Kf1 {[%clk 0:00:04]} 45... Rd1+ {[%clk 0:00:03.4]} 46.
Kg2 {[%clk 0:00:03.9]} 46... R1d2 {[%clk 0:00:02.5]} 47. Kf1 {[%clk 0:00:03.8]}
47... Rxc2 {[%clk 0:00:02.1]} 48. Rxc2 {[%clk 0:00:03.5]} 48... Rxg3 {[%clk
0:00:03]} 49. Ne5 {[%clk 0:00:02.5]} 49... Bd4 {[%clk 0:00:03.7]} 50. Ke2 {[%clk
0:00:01.7]} 50... Re3+ {[%clk 0:00:03.9]} 51. Kf2 {[%clk 0:00:01.7]} 51... Rxe5+
{[%clk 0:00:03.5]} 52. Kf3 {[%clk 0:00:02.6]} 52... Re3+ {[%clk 0:00:03.8]} 53.
Kg4 {[%clk 0:00:02.4]} 53... Kg6 {[%clk 0:00:04.2]} 54. h5+ {[%clk 0:00:03.3]}
54... Kf6 {[%clk 0:00:04.6]} 55. Rg2 {[%clk 0:00:03.2]} 55... Rd3 {[%clk
0:00:04.6]} 56. Kh4 {[%clk 0:00:04.1]} 56... Rd2 {[%clk 0:00:04.9]} 57. Rg6+
{[%clk 0:00:05]} 57... Kf7 {[%clk 0:00:05]} 58. Kg4 {[%clk 0:00:05.9]} 58... c2
{[%clk 0:00:05.3]} 59. Kf5 {[%clk 0:00:06.8]} 59... c1=Q {[%clk 0:00:05]} 60.
Rxg7+ {[%clk 0:00:07.7]} 60... Bxg7 {[%clk 0:00:04.2]} 0-1

[Event "*** Titled Tuesday Blitz"]
[Site "Chess.com"]
[Date "2020.12.01"]
[Round "9"]
[White "eCztery"]
[Black "vladgoncharov"]
[Result "0-1"]
[WhiteElo "2342"]
[BlackElo "2476"]
[TimeControl "180+1"]
[EndTime "11:45:05 PST"]
[Termination "vladgoncharov won by checkmate"]

1. e4 {[%clk 0:03:00.3]} 1... e6 {[%clk 0:02:57.4]} 2. d4 {[%clk 0:02:57]} 2...
d5 {[%clk 0:02:57.8]} 3. Nc3 {[%clk 0:02:56.2]} 3... Bb4 {[%clk 0:02:56.7]} 4.
Qd3 {[%clk 0:02:52.7]} 4... Qd7 {[%clk 0:02:47.6]} 5. Bd2 {[%clk 0:02:43.5]}
5... b6 {[%clk 0:02:45.1]} 6. O-O-O {[%clk 0:02:40]} 6... Ba6 {[%clk 0:02:32.2]}
7. Qg3 {[%clk 0:02:37.4]} 7... Kf8 {[%clk 0:02:31.7]} 8. exd5 {[%clk 0:02:23.1]}
8... exd5 {[%clk 0:02:30.5]} 9. Nf3 {[%clk 0:02:06.8]} 9... Bxf1 {[%clk
0:02:29.1]} 10. Rhxf1 {[%clk 0:02:05.2]} 10... Nf6 {[%clk 0:02:29.6]} 11. Ne5
{[%clk 0:01:53.5]} 11... Qf5 {[%clk 0:02:28.2]} 12. Nb5 {[%clk 0:01:38.4]} 12...
Bxd2+ {[%clk 0:02:00.7]} 13. Rxd2 {[%clk 0:01:39.3]} 13... c5 {[%clk 0:01:53.7]}
14. Nxf7 {[%clk 0:01:24.6]} 14... Ne4 {[%clk 0:01:48.4]} 15. Qc7 {[%clk
0:01:22.5]} 15... Na6 {[%clk 0:01:44.3]} 16. Qb7 {[%clk 0:01:17.7]} 16... Rb8
{[%clk 0:01:42.2]} 17. Qxa6 {[%clk 0:01:11.6]} 17... Nxd2 {[%clk 0:01:29.6]} 18.
Nfd6 {[%clk 0:01:00.5]} 18... Qf4 {[%clk 0:01:14.3]} 19. g3 {[%clk 0:00:59.6]}
19... Nb3+ {[%clk 0:00:49.6]} 20. Kb1 {[%clk 0:00:50.6]} 20... Nd2+ {[%clk
0:00:49.1]} 21. Ka1 {[%clk 0:00:48.8]} 21... Qf6 {[%clk 0:00:46.4]} 22. Qxa7
{[%clk 0:00:38.3]} 22... Rd8 {[%clk 0:00:42.6]} 23. Re1 {[%clk 0:00:36.9]} 23...
Nf3 {[%clk 0:00:36.2]} 24. Re3 {[%clk 0:00:19.1]} 24... Nxd4 {[%clk 0:00:35.4]}
25. Qd7 {[%clk 0:00:14.5]} 25... g5 {[%clk 0:00:24.1]} 26. Re8+ {[%clk
0:00:13.1]} 26... Rxe8 {[%clk 0:00:22.9]} 27. Qxe8+ {[%clk 0:00:14]} 27... Kg7
{[%clk 0:00:22.9]} 28. Qd7+ {[%clk 0:00:14.2]} 28... Kg6 {[%clk 0:00:20.3]} 29.
Nxd4 {[%clk 0:00:14.2]} 29... cxd4 {[%clk 0:00:18.9]} 30. h4 {[%clk 0:00:12.5]}
30... gxh4 {[%clk 0:00:12.5]} 31. gxh4 {[%clk 0:00:13.4]} 31... Qxf2 {[%clk
0:00:09.9]} 32. a3 {[%clk 0:00:11.8]} 32... Rf8 {[%clk 0:00:07.8]} 33. Qg4+
{[%clk 0:00:10.1]} 33... Kf6 {[%clk 0:00:06.4]} 34. Nb5 {[%clk 0:00:08.7]} 34...
Qf1+ {[%clk 0:00:04.4]} 35. Ka2 {[%clk 0:00:08.6]} 35... Qc4+ {[%clk 0:00:03.6]}
36. Ka1 {[%clk 0:00:05.5]} 36... Qxb5 {[%clk 0:00:03.6]} 37. Qxd4+ {[%clk
0:00:05.7]} 37... Ke7 {[%clk 0:00:03.4]} 38. Qg7+ {[%clk 0:00:05.9]} 38... Rf7
{[%clk 0:00:03.8]} 39. Qe5+ {[%clk 0:00:06.1]} 39... Kd7 {[%clk 0:00:04.1]} 40.
b3 {[%clk 0:00:05.1]} 40... Rf1+ {[%clk 0:00:04.1]} 41. Kb2 {[%clk 0:00:05.7]}
41... Rf7 {[%clk 0:00:04.1]} 42. a4 {[%clk 0:00:05.2]} 42... Qc6 {[%clk
0:00:04.3]} 43. Qh5 {[%clk 0:00:06.1]} 43... Qf6+ {[%clk 0:00:04.8]} 44. Ka2
{[%clk 0:00:05]} 44... Kd6 {[%clk 0:00:04.8]} 45. Qe2 {[%clk 0:00:04.8]} 45...
Qf5 {[%clk 0:00:04.5]} 46. Kb2 {[%clk 0:00:04.3]} 46... Qe5+ {[%clk 0:00:04.5]}
47. Qxe5+ {[%clk 0:00:04.9]} 47... Kxe5 {[%clk 0:00:05.4]} 48. b4 {[%clk
0:00:05.6]} 48... Rf4 {[%clk 0:00:06.2]} 49. a5 {[%clk 0:00:06.5]} 49... Rxh4
{[%clk 0:00:06.7]} 50. Ka3 {[%clk 0:00:07.3]} 50... bxa5 {[%clk 0:00:04.7]} 51.
bxa5 {[%clk 0:00:08.2]} 51... Rc4 {[%clk 0:00:04.5]} 52. Kb3 {[%clk 0:00:08.2]}
52... Rc6 {[%clk 0:00:04.2]} 53. Kb4 {[%clk 0:00:08.3]} 53... Kd6 {[%clk
0:00:04.4]} 54. Kb5 {[%clk 0:00:09.2]} 54... Rxc2 {[%clk 0:00:04.6]} 55. a6
{[%clk 0:00:10.1]} 55... Rb2+ {[%clk 0:00:05.3]} 56. Ka5 {[%clk 0:00:10.3]}
56... Ra2+ {[%clk 0:00:06]} 57. Kb6 {[%clk 0:00:10.6]} 57... Rxa6+ {[%clk
0:00:06.9]} 58. Kxa6 {[%clk 0:00:11.5]} 58... d4 {[%clk 0:00:07.4]} 59. Kb5
{[%clk 0:00:12.4]} 59... d3 {[%clk 0:00:08.2]} 60. Kb4 {[%clk 0:00:13.3]} 60...
d2 {[%clk 0:00:08.9]} 61. Kc3 {[%clk 0:00:14.2]} 61... d1=Q {[%clk 0:00:09.3]}
62. Kb2 {[%clk 0:00:15.1]} 62... Qd5 {[%clk 0:00:09.7]} 63. Kc2 {[%clk 0:00:16]}
63... Kc5 {[%clk 0:00:10.3]} 64. Kc3 {[%clk 0:00:16.9]} 64... Qe4 {[%clk
0:00:10.8]} 65. Kb2 {[%clk 0:00:17.8]} 65... Kb4 {[%clk 0:00:11]} 66. Ka2 {[%clk
0:00:17.5]} 66... Qe2+ {[%clk 0:00:11.5]} 67. Ka1 {[%clk 0:00:17.8]} 67... Kb3
{[%clk 0:00:12.1]} 68. Kb1 {[%clk 0:00:18.2]} 68... Qe1# {[%clk 0:00:13]} 0-1

[Event "*** Titled Tuesday Blitz"]
[Site "Chess.com"]
[Date "2020.12.01"]
[Round "9"]
[White "rynos0411"]
[Black "shnitez"]
[Result "0-1"]
[WhiteElo "2393"]
[BlackElo "2590"]
[TimeControl "180+1"]
[EndTime "11:45:06 PST"]
[Termination "shnitez won by resignation"]

1. d4 {[%clk 0:03:00.6]} 1... Nf6 {[%clk 0:02:59.9]} 2. c4 {[%clk 0:03:00.3]}
2... e6 {[%clk 0:03:00.1]} 3. Nf3 {[%clk 0:03:00.4]} 3... b6 {[%clk 0:03:00]} 4.
g3 {[%clk 0:03:00.2]} 4... Bb7 {[%clk 0:03:00.5]} 5. Bg2 {[%clk 0:03:00.2]} 5...
Be7 {[%clk 0:03:01]} 6. O-O {[%clk 0:03:00.3]} 6... O-O {[%clk 0:03:01.5]} 7.
Nc3 {[%clk 0:03:00.6]} 7... Ne4 {[%clk 0:03:01.8]} 8. Qc2 {[%clk 0:02:54.6]}
8... Nxc3 {[%clk 0:03:01.9]} 9. Qxc3 {[%clk 0:02:54.5]} 9... Bf6 {[%clk
0:03:01.8]} 10. Bf4 {[%clk 0:02:51.2]} 10... d6 {[%clk 0:03:00.3]} 11. Qc2
{[%clk 0:02:41.9]} 11... g6 {[%clk 0:02:59.9]} 12. Rad1 {[%clk 0:02:41.5]} 12...
Nd7 {[%clk 0:02:59.4]} 13. e4 {[%clk 0:02:41.7]} 13... Bg7 {[%clk 0:02:43.9]}
14. d5 {[%clk 0:02:37.3]} 14... e5 {[%clk 0:02:42.3]} 15. Bg5 {[%clk 0:02:30.8]}
15... f6 {[%clk 0:02:41.7]} 16. Bc1 {[%clk 0:02:29.7]} 16... a5 {[%clk
0:02:41.7]} 17. b3 {[%clk 0:02:28.9]} 17... Bc8 {[%clk 0:02:35.2]} 18. a3 {[%clk
0:02:25.5]} 18... Rf7 {[%clk 0:02:15.4]} 19. b4 {[%clk 0:01:50.3]} 19... Qf8
{[%clk 0:01:49.3]} 20. Ne1 {[%clk 0:01:41.4]} 20... f5 {[%clk 0:01:46.6]} 21. f4
{[%clk 0:01:36.3]} 21... exf4 {[%clk 0:01:44.3]} 22. Bxf4 {[%clk 0:01:23.4]}
22... axb4 {[%clk 0:01:40.5]} 23. axb4 {[%clk 0:01:22.8]} 23... Ne5 {[%clk
0:01:28.4]} 24. Nd3 {[%clk 0:01:17.4]} 24... Nxd3 {[%clk 0:00:53.1]} 25. Qxd3
{[%clk 0:01:18.3]} 25... fxe4 {[%clk 0:00:52.1]} 26. Bxe4 {[%clk 0:01:16.9]}
26... Bg4 {[%clk 0:00:50.8]} 27. Rde1 {[%clk 0:01:14.1]} 27... Re8 {[%clk
0:00:39.9]} 28. Bg2 {[%clk 0:01:07.7]} 28... Bf5 {[%clk 0:00:38.4]} 29. Qd2
{[%clk 0:01:06.1]} 29... Rfe7 {[%clk 0:00:35.9]} 30. Rxe7 {[%clk 0:01:03.7]}
30... Qxe7 {[%clk 0:00:36.8]} 31. Bf3 {[%clk 0:00:54.5]} 31... h5 {[%clk
0:00:36.6]} 32. Kf2 {[%clk 0:00:51]} 32... Qf6 {[%clk 0:00:31.8]} 33. Kg2 {[%clk
0:00:39.8]} 33... Qc3 {[%clk 0:00:28.7]} 34. Qxc3 {[%clk 0:00:28]} 34... Bxc3
{[%clk 0:00:29.6]} 35. c5 {[%clk 0:00:28.5]} 35... Bxb4 {[%clk 0:00:26.5]} 36.
cxd6 {[%clk 0:00:26.9]} 36... Bxd6 {[%clk 0:00:26.2]} 37. Bxd6 {[%clk
0:00:26.9]} 37... cxd6 {[%clk 0:00:27.1]} 38. Bxh5 {[%clk 0:00:27]} 38... Be4+
{[%clk 0:00:18.2]} 39. Bf3 {[%clk 0:00:26.9]} 39... Bxf3+ {[%clk 0:00:17.2]} 40.
Rxf3 {[%clk 0:00:27.1]} 40... b5 {[%clk 0:00:14.1]} 41. Rb3 {[%clk 0:00:26.8]}
41... Rb8 {[%clk 0:00:13.9]} 42. Kf3 {[%clk 0:00:25.8]} 42... Kf7 {[%clk
0:00:13.9]} 43. Ke3 {[%clk 0:00:26.2]} 43... Kf6 {[%clk 0:00:14.1]} 44. Kd4
{[%clk 0:00:26.8]} 44... b4 {[%clk 0:00:11.7]} 45. Kc4 {[%clk 0:00:26.3]} 45...
Ke5 {[%clk 0:00:11.9]} 46. Re3+ {[%clk 0:00:24.5]} 46... Kf5 {[%clk 0:00:12.4]}
47. Kb3 {[%clk 0:00:23]} 47... Rb5 {[%clk 0:00:12.3]} 48. Re8 {[%clk 0:00:21.2]}
48... Rxd5 {[%clk 0:00:12]} 49. Kxb4 {[%clk 0:00:21.3]} 49... Rd2 {[%clk
0:00:11.8]} 50. h4 {[%clk 0:00:16.4]} 50... Rd3 {[%clk 0:00:11.4]} 51. Kc4
{[%clk 0:00:11.8]} 51... Rxg3 {[%clk 0:00:10.7]} 52. Rf8+ {[%clk 0:00:10.3]}
52... Kg4 {[%clk 0:00:10.4]} 53. Rf6 {[%clk 0:00:10.6]} 53... Kxh4 {[%clk
0:00:10.1]} 54. Rxd6 {[%clk 0:00:11.1]} 54... g5 {[%clk 0:00:10.2]} 55. Kd4
{[%clk 0:00:11]} 55... Rf3 {[%clk 0:00:10.4]} 56. Ke4 {[%clk 0:00:11.1]} 56...
Rf1 {[%clk 0:00:10.4]} 57. Rh6+ {[%clk 0:00:11.1]} 57... Kg3 {[%clk 0:00:10.4]}
58. Ke3 {[%clk 0:00:10.7]} 58... Re1+ {[%clk 0:00:09.4]} 59. Kd2 {[%clk
0:00:11]} 59... Re8 {[%clk 0:00:10.3]} 60. Rg6 {[%clk 0:00:11.1]} 60... g4
{[%clk 0:00:10.7]} 61. Rg7 {[%clk 0:00:11.7]} 61... Kf3 {[%clk 0:00:10.8]} 62.
Rg6 {[%clk 0:00:07.6]} 62... g3 {[%clk 0:00:10.6]} 63. Rg7 {[%clk 0:00:07.4]}
63... g2 {[%clk 0:00:09.9]} 64. Rg6 {[%clk 0:00:05]} 64... Kf2 {[%clk
0:00:10.2]} 65. Rf6+ {[%clk 0:00:05.2]} 65... Kg1 {[%clk 0:00:10.6]} 66. Rg6
{[%clk 0:00:05.7]} 66... Re5 {[%clk 0:00:10.9]} 67. Rg7 {[%clk 0:00:02.8]} 67...
Kf2 {[%clk 0:00:10.9]} 68. Rf7+ {[%clk 0:00:02.7]} 68... Kg3 {[%clk 0:00:11.4]}
69. Rg7+ {[%clk 0:00:03.1]} 69... Kf3 {[%clk 0:00:11.7]} 70. Rf7+ {[%clk
0:00:02.1]} 70... Kg4 {[%clk 0:00:11.4]} 71. Rf8 {[%clk 0:00:02.3]} 71... g1=Q
{[%clk 0:00:10.6]} 72. Rg8+ {[%clk 0:00:02.4]} 72... Rg5 {[%clk 0:00:10.7]} 73.
Rxg5+ {[%clk 0:00:03.3]} 73... Kxg5 {[%clk 0:00:11.6]} 0-1